[Event "Late-Titled-Tuesday-Blitz-January-30-2024"]
[Site "Chess.com"]
[Date "2024.01.30"]
[Round "3"]
[White "AlexeiShirov"]
[Black "annasargsyan_m"]
[Result "1-0"]
[WhiteElo "2758"]
[BlackElo "2539"]
[TimeControl "180+1"]
[EndTime "14:29:08 PST"]
[Termination "AlexeiShirov won by resignation"]

1. e4 {[%clk 0:03:00.9]} 1... e5 {[%clk 0:02:59.3]} 2. Nf3 {[%clk 0:03:00.5]}
2... Nc6 {[%clk 0:02:59.7]} 3. Bb5 {[%clk 0:03:00.2]} 3... a6 {[%clk 0:02:58.3]}
4. Ba4 {[%clk 0:02:59.9]} 4... Nf6 {[%clk 0:02:58.9]} 5. O-O {[%clk 0:03:00]}
5... Nxe4 {[%clk 0:02:58.9]} 6. d4 {[%clk 0:02:59.2]} 6... b5 {[%clk 0:02:56.6]}
7. Bb3 {[%clk 0:02:58.9]} 7... d5 {[%clk 0:02:57.2]} 8. dxe5 {[%clk 0:02:57.4]}
8... Be6 {[%clk 0:02:56.5]} 9. Nbd2 {[%clk 0:02:53.9]} 9... Be7 {[%clk
0:02:51.1]} 10. Nxe4 {[%clk 0:02:42.7]} 10... dxe4 {[%clk 0:02:52]} 11. Bxe6
{[%clk 0:02:40.8]} 11... fxe6 {[%clk 0:02:52.9]} 12. Ng5 {[%clk 0:02:40]} 12...
Bxg5 {[%clk 0:02:52.8]} 13. Qh5+ {[%clk 0:02:39.2]} 13... g6 {[%clk 0:02:53.1]}
14. Qxg5 {[%clk 0:02:39.1]} 14... O-O {[%clk 0:02:44.2]} 15. Qg4 {[%clk
0:02:21.7]} 15... Qd5 {[%clk 0:02:38.8]} 16. Bh6 {[%clk 0:02:19.6]} 16... Nxe5
{[%clk 0:02:31.9]} 17. Qh4 {[%clk 0:02:11.4]} 17... Rf5 {[%clk 0:02:23.8]} 18.
Rad1 {[%clk 0:02:10.1]} 18... g5 {[%clk 0:00:55.2]} 19. Bxg5 {[%clk 0:02:00.1]}
19... Qc6 {[%clk 0:00:33.8]} 20. Be3 {[%clk 0:01:51.2]} 20... Ng6 {[%clk
0:00:27.5]} 21. Rd8+ {[%clk 0:01:48.9]} 21... Rxd8 {[%clk 0:00:22.8]} 22. Qxd8+
{[%clk 0:01:48.7]} 22... Rf8 {[%clk 0:00:23.7]} 23. Qd4 {[%clk 0:01:45.3]} 23...
Qxc2 {[%clk 0:00:21.4]} 24. Rc1 {[%clk 0:01:43.1]} 24... Qd3 {[%clk 0:00:17.6]}
25. Qc5 {[%clk 0:01:31.2]} 25... Qd6 {[%clk 0:00:03.9]} 26. Qxc7 {[%clk
0:01:27.4]} 26... Qxc7 {[%clk 0:00:03.7]} 27. Rxc7 {[%clk 0:01:27]} 27... Ne5
{[%clk 0:00:03.2]} 28. h3 {[%clk 0:01:22]} 28... Nc4 {[%clk 0:00:02.5]} 29. Bd4
{[%clk 0:01:18.9]} 29... Rd8 {[%clk 0:00:03.1]} 30. Bc3 {[%clk 0:01:08.7]} 30...
h5 {[%clk 0:00:03.3]} 31. b3 {[%clk 0:01:05.8]} 31... Rd3 {[%clk 0:00:02.7]} 32.
Bf6 {[%clk 0:00:56.6]} 32... e3 {[%clk 0:00:02.9]} 33. fxe3 {[%clk 0:00:52.5]}
33... Nxe3 {[%clk 0:00:03.8]} 34. Bg5 {[%clk 0:00:37.4]} 34... Nd5 {[%clk
0:00:03.1]} 35. Ra7 {[%clk 0:00:35.9]} 35... Nb4 {[%clk 0:00:02.3]} 36. a3
{[%clk 0:00:33]} 36... Nd5 {[%clk 0:00:01.5]} 37. Rxa6 {[%clk 0:00:29.9]} 37...
Rxb3 {[%clk 0:00:01.8]} 38. Rxe6 {[%clk 0:00:28.7]} 38... Rxa3 {[%clk
0:00:02.3]} 39. Re8+ {[%clk 0:00:24.3]} 39... Kf7 {[%clk 0:00:02.4]} 40. Rb8
{[%clk 0:00:23.9]} 40... b4 {[%clk 0:00:02.9]} 41. Kh2 {[%clk 0:00:19.2]} 41...
b3 {[%clk 0:00:02.9]} 42. Bc1 {[%clk 0:00:16.6]} 42... Ra1 {[%clk 0:00:02.7]}
43. Bb2 {[%clk 0:00:15.7]} 43... Ra2 {[%clk 0:00:01.8]} 44. Rxb3 {[%clk
0:00:15.5]} 44... h4 {[%clk 0:00:02.1]} 45. Rb5 {[%clk 0:00:14.3]} 45... Nf4
{[%clk 0:00:01.8]} 46. Rf5+ {[%clk 0:00:13.5]} 46... Kg6 {[%clk 0:00:01.8]} 47.
Rxf4 {[%clk 0:00:14.1]} 47... Rxb2 {[%clk 0:00:02.5]} 48. Rxh4 {[%clk
0:00:14.7]} 1-0

[Event "Late-Titled-Tuesday-Blitz-January-30-2024"]
[Site "Chess.com"]
[Date "2024.01.30"]
[Round "3"]
[White "Seochesspie"]
[Black "Mazetovic"]
[Result "0-1"]
[WhiteElo "2847"]
[BlackElo "2613"]
[TimeControl "180+1"]
[EndTime "14:29:09 PST"]
[Termination "Mazetovic won on time"]

1. e4 {[%clk 0:03:00.9]} 1... c5 {[%clk 0:02:59.5]} 2. Nf3 {[%clk 0:03:01]} 2...
Nc6 {[%clk 0:02:58.8]} 3. d4 {[%clk 0:03:00.3]} 3... cxd4 {[%clk 0:02:59.7]} 4.
Nxd4 {[%clk 0:03:01]} 4... g6 {[%clk 0:03:00]} 5. Nc3 {[%clk 0:02:55.6]} 5...
Bg7 {[%clk 0:02:58.5]} 6. Be3 {[%clk 0:02:56]} 6... Nf6 {[%clk 0:02:57.7]} 7.
Bc4 {[%clk 0:02:56.2]} 7... Qa5 {[%clk 0:02:57]} 8. O-O {[%clk 0:02:46.9]} 8...
O-O {[%clk 0:02:56.5]} 9. Bb3 {[%clk 0:02:42.2]} 9... d6 {[%clk 0:02:56.5]} 10.
f3 {[%clk 0:02:40.2]} 10... Bd7 {[%clk 0:02:50.1]} 11. Nxc6 {[%clk 0:02:37.5]}
11... Bxc6 {[%clk 0:02:38.3]} 12. Kh1 {[%clk 0:02:36.9]} 12... Nd7 {[%clk
0:02:32.8]} 13. Bd4 {[%clk 0:02:36.8]} 13... Bxd4 {[%clk 0:02:31.5]} 14. Qxd4
{[%clk 0:02:37]} 14... Qc5 {[%clk 0:02:28.8]} 15. Qd2 {[%clk 0:02:33.9]} 15...
b5 {[%clk 0:02:20.1]} 16. Nd5 {[%clk 0:02:31.8]} 16... Bxd5 {[%clk 0:01:59.6]}
17. exd5 {[%clk 0:02:32.7]} 17... a5 {[%clk 0:01:59.3]} 18. a3 {[%clk
0:02:32.1]} 18... Nb6 {[%clk 0:01:57.1]} 19. Rfe1 {[%clk 0:02:31]} 19... Ra7
{[%clk 0:01:57.2]} 20. Re4 {[%clk 0:02:25.9]} 20... Rc7 {[%clk 0:01:40]} 21. c3
{[%clk 0:02:25.6]} 21... a4 {[%clk 0:01:27.2]} 22. Ba2 {[%clk 0:02:25.5]} 22...
f6 {[%clk 0:01:27.3]} 23. Rae1 {[%clk 0:02:24.2]} 23... Rf7 {[%clk 0:01:26.5]}
24. Rb4 {[%clk 0:02:16.5]} 24... Rf8 {[%clk 0:01:02.6]} 25. Qd3 {[%clk
0:02:12.4]} 25... Nc4 {[%clk 0:00:58.7]} 26. Bxc4 {[%clk 0:02:12.4]} 26... bxc4
{[%clk 0:00:58.7]} 27. Qd2 {[%clk 0:02:13.3]} 27... Ra7 {[%clk 0:00:52.8]} 28.
Re4 {[%clk 0:02:10.1]} 28... Rc8 {[%clk 0:00:39.7]} 29. Rd4 {[%clk 0:02:03.9]}
29... Kg7 {[%clk 0:00:28.4]} 30. Qe2 {[%clk 0:02:03]} 30... Rcc7 {[%clk
0:00:25.5]} 31. Kg1 {[%clk 0:01:45.7]} 31... Rab7 {[%clk 0:00:24.5]} 32. Rxa4
{[%clk 0:01:37.7]} 32... Qb5 {[%clk 0:00:15]} 33. Rb4 {[%clk 0:01:37.6]} 33...
Qa6 {[%clk 0:00:12.9]} 34. Kf2 {[%clk 0:01:29.6]} 34... Rxb4 {[%clk 0:00:12.9]}
35. axb4 {[%clk 0:01:30.5]} 35... Qa2 {[%clk 0:00:12.8]} 36. h4 {[%clk
0:01:28.5]} 36... h5 {[%clk 0:00:12.3]} 37. g3 {[%clk 0:01:24.8]} 37... Qb1
{[%clk 0:00:12.3]} 38. Re4 {[%clk 0:01:14.4]} 38... Kf7 {[%clk 0:00:11.5]} 39.
Kg2 {[%clk 0:01:08.3]} 39... Ra7 {[%clk 0:00:11.4]} 40. b5 {[%clk 0:01:06.5]}
40... Kf8 {[%clk 0:00:09.7]} 41. b6 {[%clk 0:00:55]} 41... Ra1 {[%clk
0:00:08.9]} 42. Kh3 {[%clk 0:00:07]} 42... Qh1+ {[%clk 0:00:08.5]} 43. Qh2
{[%clk 0:00:07.3]} 43... Qxf3 {[%clk 0:00:09.2]} 44. Rf4 {[%clk 0:00:07.6]}
44... Qxd5 {[%clk 0:00:08.6]} 45. Rf2 {[%clk 0:00:03.4]} 45... Rh1 {[%clk
0:00:08.4]} 46. Qxh1 {[%clk 0:00:01.8]} 46... Qxh1+ {[%clk 0:00:07.8]} 47. Rh2
{[%clk 0:00:02.7]} 47... Qb7 {[%clk 0:00:07.5]} 0-1

[Event "Late-Titled-Tuesday-Blitz-January-30-2024"]
[Site "Chess.com"]
[Date "2024.01.30"]
[Round "3"]
[White "Charodej1"]
[Black "Defend1r"]
[Result "0-1"]
[WhiteElo "2300"]
[BlackElo "2529"]
[TimeControl "180+1"]
[EndTime "14:29:09 PST"]
[Termination "Defend1r won by resignation"]

1. e4 {[%clk 0:02:56.3]} 1... c5 {[%clk 0:02:56.9]} 2. Nf3 {[%clk 0:02:54.3]}
2... d6 {[%clk 0:02:56.9]} 3. d4 {[%clk 0:02:54.7]} 3... cxd4 {[%clk 0:02:56.4]}
4. Nxd4 {[%clk 0:02:55.4]} 4... Nf6 {[%clk 0:02:56.8]} 5. Nc3 {[%clk 0:02:55]}
5... a6 {[%clk 0:02:57.1]} 6. Be2 {[%clk 0:02:54]} 6... e5 {[%clk 0:02:57.2]} 7.
Nb3 {[%clk 0:02:54.3]} 7... Be7 {[%clk 0:02:57.6]} 8. O-O {[%clk 0:02:53.8]}
8... Be6 {[%clk 0:02:57.9]} 9. f4 {[%clk 0:02:52]} 9... O-O {[%clk 0:02:51.5]}
10. f5 {[%clk 0:02:44.1]} 10... Bc8 {[%clk 0:02:50.8]} 11. a4 {[%clk 0:02:31.7]}
11... b6 {[%clk 0:02:50.8]} 12. Be3 {[%clk 0:02:22.9]} 12... Bb7 {[%clk
0:02:50.1]} 13. Bf3 {[%clk 0:02:17.6]} 13... Nbd7 {[%clk 0:02:49.8]} 14. Rf2
{[%clk 0:01:46.8]} 14... Rc8 {[%clk 0:02:39.4]} 15. Qe1 {[%clk 0:01:17]} 15...
Nc5 {[%clk 0:02:09.4]} 16. Nxc5 {[%clk 0:01:15.1]} 16... dxc5 {[%clk 0:02:05.7]}
17. Rd1 {[%clk 0:01:10.1]} 17... Qe8 {[%clk 0:02:02.1]} 18. Qe2 {[%clk
0:00:59.2]} 18... Qc6 {[%clk 0:01:44.6]} 19. g4 {[%clk 0:00:57.7]} 19... h6
{[%clk 0:01:44.5]} 20. Rg2 {[%clk 0:00:56.8]} 20... Nh7 {[%clk 0:01:34.5]} 21.
Nd5 {[%clk 0:00:47.5]} 21... Bd8 {[%clk 0:01:34.6]} 22. Qf2 {[%clk 0:00:36.9]}
22... Qxa4 {[%clk 0:01:29.2]} 23. h4 {[%clk 0:00:36.8]} 23... Bxd5 {[%clk
0:01:28.3]} 24. Rxd5 {[%clk 0:00:34.5]} 24... Qa1+ {[%clk 0:01:23.3]} 25. Rd1
{[%clk 0:00:30.8]} 25... Qxb2 {[%clk 0:01:22.6]} 26. g5 {[%clk 0:00:31.7]} 26...
hxg5 {[%clk 0:01:19.6]} 27. hxg5 {[%clk 0:00:32.6]} 27... Rc6 {[%clk 0:01:04.3]}
28. Kh1 {[%clk 0:00:17.2]} 28... Re8 {[%clk 0:00:32.3]} 29. Rdg1 {[%clk
0:00:16.1]} 29... a5 {[%clk 0:00:31.8]} 30. Rh2 {[%clk 0:00:16.4]} 30... Qc3
{[%clk 0:00:22.5]} 31. Bc1 {[%clk 0:00:13]} 31... a4 {[%clk 0:00:19.8]} 32. g6
{[%clk 0:00:12.9]} 32... fxg6 {[%clk 0:00:19.2]} 33. fxg6 {[%clk 0:00:13.8]}
33... Nf6 {[%clk 0:00:18.9]} 34. Rg3 {[%clk 0:00:10]} 34... Qa1 {[%clk
0:00:16.9]} 35. Rg1 {[%clk 0:00:09.1]} 35... Qc3 {[%clk 0:00:15.3]} 36. Rg3
{[%clk 0:00:09]} 36... Qc4 {[%clk 0:00:14.8]} 37. Rgh3 {[%clk 0:00:08.6]} 37...
Kf8 {[%clk 0:00:15.2]} 38. Rh8+ {[%clk 0:00:08.5]} 38... Ke7 {[%clk 0:00:15.6]}
39. Rxe8+ {[%clk 0:00:08.4]} 39... Kxe8 {[%clk 0:00:15.8]} 40. Bg5 {[%clk
0:00:08.6]} 40... Rd6 {[%clk 0:00:13.1]} 41. Rh8+ {[%clk 0:00:08.2]} 41... Kd7
{[%clk 0:00:13.1]} 42. Kh2 {[%clk 0:00:06.1]} 42... Be7 {[%clk 0:00:12.3]} 43.
Qg2 {[%clk 0:00:06.6]} 43... a3 {[%clk 0:00:10.5]} 44. Bxf6 {[%clk 0:00:05.6]}
44... Bxf6 {[%clk 0:00:10.2]} 45. Bg4+ {[%clk 0:00:06.1]} 45... Kc6 {[%clk
0:00:10.3]} 46. Rc8+ {[%clk 0:00:06.1]} 46... Kb7 {[%clk 0:00:10.6]} 47. Bf5
{[%clk 0:00:05.2]} 47... Qd4 {[%clk 0:00:10.1]} 48. Re8 {[%clk 0:00:04.7]} 48...
Qd2 {[%clk 0:00:10.3]} 49. Rc8 {[%clk 0:00:03.8]} 49... Qxg2+ {[%clk 0:00:09.9]}
50. Kxg2 {[%clk 0:00:04.7]} 50... a2 {[%clk 0:00:10.7]} 0-1

[Event "Late-Titled-Tuesday-Blitz-January-30-2024"]
[Site "Chess.com"]
[Date "2024.01.30"]
[Round "3"]
[White "jsdbv18"]
[Black "Eloist"]
[Result "1-0"]
[WhiteElo "2607"]
[BlackElo "2439"]
[TimeControl "180+1"]
[EndTime "14:29:12 PST"]
[Termination "jsdbv18 won on time"]

1. e4 {[%clk 0:03:00.9]} 1... e6 {[%clk 0:02:59.6]} 2. Nc3 {[%clk 0:02:59.8]}
2... d5 {[%clk 0:02:59.2]} 3. exd5 {[%clk 0:02:59.4]} 3... exd5 {[%clk
0:02:58.9]} 4. d4 {[%clk 0:02:59.8]} 4... Bf5 {[%clk 0:02:53.9]} 5. Nf3 {[%clk
0:02:53.1]} 5... c6 {[%clk 0:02:52.7]} 6. Bd3 {[%clk 0:02:52.6]} 6... Bg6 {[%clk
0:02:50.6]} 7. O-O {[%clk 0:02:51.6]} 7... Bd6 {[%clk 0:02:50.1]} 8. Ne5 {[%clk
0:02:49.7]} 8... Bxd3 {[%clk 0:02:38.1]} 9. Qxd3 {[%clk 0:02:48.4]} 9... f6
{[%clk 0:02:35.4]} 10. Nf3 {[%clk 0:02:43.4]} 10... Ne7 {[%clk 0:02:34.6]} 11.
Ne2 {[%clk 0:02:39.4]} 11... Qc7 {[%clk 0:02:31.8]} 12. b3 {[%clk 0:02:38.9]}
12... O-O {[%clk 0:02:31.1]} 13. c4 {[%clk 0:02:38.8]} 13... dxc4 {[%clk
0:02:13.1]} 14. bxc4 {[%clk 0:02:38.6]} 14... c5 {[%clk 0:02:07.1]} 15. dxc5
{[%clk 0:02:23.6]} 15... Bxc5 {[%clk 0:02:06.6]} 16. Nf4 {[%clk 0:02:19]} 16...
Qd7 {[%clk 0:01:39]} 17. Qxd7 {[%clk 0:01:53.3]} 17... Nxd7 {[%clk 0:01:38.4]}
18. Ne6 {[%clk 0:01:42.1]} 18... Rfc8 {[%clk 0:01:35.3]} 19. Rd1 {[%clk
0:01:40.7]} 19... Nb6 {[%clk 0:01:25.4]} 20. Nxc5 {[%clk 0:01:32.2]} 20... Rxc5
{[%clk 0:01:25.2]} 21. Ba3 {[%clk 0:01:31.9]} 21... Rc7 {[%clk 0:01:22.5]} 22.
Bd6 {[%clk 0:01:30]} 22... Rd7 {[%clk 0:01:17.9]} 23. c5 {[%clk 0:01:21.7]}
23... Nc4 {[%clk 0:01:17.8]} 24. Rab1 {[%clk 0:01:00.2]} 24... Rad8 {[%clk
0:01:08.9]} 25. Re1 {[%clk 0:00:38.2]} 25... Nxd6 {[%clk 0:00:58.1]} 26. cxd6
{[%clk 0:00:37.7]} 26... Nf5 {[%clk 0:00:57.9]} 27. g4 {[%clk 0:00:24.2]} 27...
Nxd6 {[%clk 0:00:57.2]} 28. Nd4 {[%clk 0:00:24]} 28... Nc4 {[%clk 0:00:50]} 29.
Ne6 {[%clk 0:00:19.3]} 29... Re8 {[%clk 0:00:41]} 30. Nc5 {[%clk 0:00:19.3]}
30... Rxe1+ {[%clk 0:00:36]} 31. Rxe1 {[%clk 0:00:19.1]} 31... Rc7 {[%clk
0:00:29.6]} 32. Nd3 {[%clk 0:00:19.7]} 32... b5 {[%clk 0:00:27]} 33. h3 {[%clk
0:00:19.5]} 33... Kf7 {[%clk 0:00:26.5]} 34. Kg2 {[%clk 0:00:19.6]} 34... Re7
{[%clk 0:00:24.1]} 35. Rb1 {[%clk 0:00:19.3]} 35... a6 {[%clk 0:00:22.9]} 36.
Nc5 {[%clk 0:00:20]} 36... Ra7 {[%clk 0:00:17.2]} 37. a4 {[%clk 0:00:20]} 37...
bxa4 {[%clk 0:00:12.4]} 38. Nxa4 {[%clk 0:00:20.4]} 38... a5 {[%clk 0:00:11.3]}
39. Rc1 {[%clk 0:00:20.8]} 39... Nd6 {[%clk 0:00:09.1]} 40. Rc6 {[%clk
0:00:20.9]} 40... Ke7 {[%clk 0:00:08.7]} 41. Rb6 {[%clk 0:00:18.5]} 41... Kd7
{[%clk 0:00:08.1]} 42. Kg3 {[%clk 0:00:16.4]} 42... Kc7 {[%clk 0:00:08.3]} 43.
f3 {[%clk 0:00:16.1]} 43... Nc4 {[%clk 0:00:06.3]} 44. Re6 {[%clk 0:00:15.9]}
44... Kd7 {[%clk 0:00:05.4]} 45. Nc5+ {[%clk 0:00:15.8]} 45... Kd8 {[%clk
0:00:04.3]} 46. Na4 {[%clk 0:00:14.4]} 46... Rc7 {[%clk 0:00:03.3]} 47. Ra6
{[%clk 0:00:13.6]} 47... Kd7 {[%clk 0:00:03.4]} 48. h4 {[%clk 0:00:11.9]} 48...
Ne5 {[%clk 0:00:03.6]} 49. Rxa5 {[%clk 0:00:11]} 49... Rc4 {[%clk 0:00:02.6]}
50. Nc5+ {[%clk 0:00:10.9]} 50... Kd6 {[%clk 0:00:02.3]} 51. Ne4+ {[%clk
0:00:11.4]} 51... Kc6 {[%clk 0:00:02.5]} 52. Ra7 {[%clk 0:00:11.4]} 1-0

[Event "Late-Titled-Tuesday-Blitz-January-30-2024"]
[Site "Chess.com"]
[Date "2024.01.30"]
[Round "3"]
[White "ameetghasi100"]
[Black "SpeedofLight0"]
[Result "0-1"]
[WhiteElo "2745"]
[BlackElo "3018"]
[TimeControl "180+1"]
[EndTime "14:29:18 PST"]
[Termination "SpeedofLight0 won on time"]

1. c4 {[%clk 0:03:00]} 1... Nc6 {[%clk 0:02:59.8]} 2. Nc3 {[%clk 0:02:59]} 2...
e5 {[%clk 0:02:57.3]} 3. e3 {[%clk 0:02:59.1]} 3... Bc5 {[%clk 0:02:56.8]} 4. a3
{[%clk 0:02:59.1]} 4... a6 {[%clk 0:02:56.7]} 5. b4 {[%clk 0:02:57.8]} 5... Ba7
{[%clk 0:02:56.9]} 6. Bb2 {[%clk 0:02:58.7]} 6... Nge7 {[%clk 0:02:55.4]} 7. Nf3
{[%clk 0:02:57.7]} 7... d6 {[%clk 0:02:55.3]} 8. Be2 {[%clk 0:02:51.3]} 8... O-O
{[%clk 0:02:55.3]} 9. O-O {[%clk 0:02:51.7]} 9... f5 {[%clk 0:02:56]} 10. d4
{[%clk 0:02:50.7]} 10... Bd7 {[%clk 0:02:45.4]} 11. Qb3 {[%clk 0:02:37.3]} 11...
Kh8 {[%clk 0:02:44.8]} 12. Rfd1 {[%clk 0:02:29.4]} 12... Qe8 {[%clk 0:02:41.7]}
13. dxe5 {[%clk 0:02:23.2]} 13... Nxe5 {[%clk 0:02:36.8]} 14. Nxe5 {[%clk
0:02:22.8]} 14... dxe5 {[%clk 0:02:37.7]} 15. c5 {[%clk 0:02:23.7]} 15... Bc6
{[%clk 0:02:35.8]} 16. a4 {[%clk 0:02:00.4]} 16... Qg6 {[%clk 0:02:29.6]} 17.
Bf1 {[%clk 0:02:00.4]} 17... f4 {[%clk 0:02:28.8]} 18. e4 {[%clk 0:02:00.4]}
18... f3 {[%clk 0:02:28.1]} 19. g3 {[%clk 0:02:00.3]} 19... Qh5 {[%clk
0:02:19.5]} 20. b5 {[%clk 0:01:53]} 20... Bxc5 {[%clk 0:02:18.3]} 21. bxc6
{[%clk 0:01:13.1]} 21... Bxf2+ {[%clk 0:02:17.1]} 22. Kxf2 {[%clk 0:01:14]}
22... Qxh2+ {[%clk 0:02:17.5]} 23. Ke3 {[%clk 0:01:13.5]} 23... Nxc6 {[%clk
0:02:07]} 24. Nd5 {[%clk 0:01:04.9]} 24... Qxg3 {[%clk 0:01:48.1]} 25. Kd2
{[%clk 0:01:00]} 25... Qh4 {[%clk 0:01:36.4]} 26. Bd3 {[%clk 0:00:54.2]} 26...
Qh2+ {[%clk 0:01:27.3]} 27. Kc1 {[%clk 0:00:51.1]} 27... f2 {[%clk 0:01:27.5]}
28. Bf1 {[%clk 0:00:40.1]} 28... Qh4 {[%clk 0:01:12]} 29. Qe3 {[%clk 0:00:35.3]}
29... Rae8 {[%clk 0:01:06.2]} 30. Ra3 {[%clk 0:00:32]} 30... Nd4 {[%clk
0:01:01.4]} 31. Rxd4 {[%clk 0:00:22.7]} 31... exd4 {[%clk 0:01:02.3]} 32. Qxd4
{[%clk 0:00:23.6]} 32... Rf7 {[%clk 0:00:52.3]} 33. Re3 {[%clk 0:00:17.6]} 33...
c5 {[%clk 0:00:44.5]} 34. Qd3 {[%clk 0:00:07.6]} 34... b5 {[%clk 0:00:44.7]} 35.
axb5 {[%clk 0:00:07.3]} 35... axb5 {[%clk 0:00:45.6]} 36. Qxb5 {[%clk
0:00:08.1]} 36... Ref8 {[%clk 0:00:39.1]} 37. Qe2 {[%clk 0:00:07.8]} 37... Qh6
{[%clk 0:00:34.8]} 38. Kc2 {[%clk 0:00:07.4]} 38... Qc6 {[%clk 0:00:29.4]} 39.
Qc4 {[%clk 0:00:04.9]} 39... Ra7 {[%clk 0:00:29.3]} 40. Rg3 {[%clk 0:00:04.7]}
40... h6 {[%clk 0:00:20.1]} 41. Qc3 {[%clk 0:00:04.8]} 41... Qa4+ {[%clk
0:00:18]} 42. Kd2 {[%clk 0:00:03.9]} 42... Rff7 {[%clk 0:00:17.4]} 43. Qe3
{[%clk 0:00:02.8]} 43... Kh7 {[%clk 0:00:15.3]} 44. e5 {[%clk 0:00:01.8]} 44...
Rad7 {[%clk 0:00:13]} 45. Bd3+ {[%clk 0:00:02.1]} 45... Kh8 {[%clk 0:00:13]} 46.
Qe4 {[%clk 0:00:02.6]} 46... Qxe4 {[%clk 0:00:11.1]} 47. Bxe4 {[%clk 0:00:03.3]}
47... f1=Q {[%clk 0:00:11.6]} 48. e6 {[%clk 0:00:04.1]} 48... Qf2+ {[%clk
0:00:11.6]} 49. Kc1 {[%clk 0:00:03.4]} 49... Qxg3 {[%clk 0:00:11.9]} 50. exd7
{[%clk 0:00:03.4]} 50... Qe1+ {[%clk 0:00:11.6]} 51. Kc2 {[%clk 0:00:02.7]}
51... Qxe4+ {[%clk 0:00:12.5]} 52. Kc3 {[%clk 0:00:03.5]} 52... Qd4+ {[%clk
0:00:12.4]} 0-1

[Event "Late-Titled-Tuesday-Blitz-January-30-2024"]
[Site "Chess.com"]
[Date "2024.01.30"]
[Round "3"]
[White "AlleyOoper"]
[Black "OneTrickPony_82"]
[Result "1/2-1/2"]
[WhiteElo "2657"]
[BlackElo "2502"]
[TimeControl "180+1"]
[EndTime "14:29:18 PST"]
[Termination "Game drawn - insufficient material"]

1. d4 {[%clk 0:03:00]} 1... Nf6 {[%clk 0:02:59.6]} 2. Nc3 {[%clk 0:02:59.6]}
2... d5 {[%clk 0:02:58.8]} 3. Bf4 {[%clk 0:02:58.2]} 3... c5 {[%clk 0:02:58.5]}
4. e3 {[%clk 0:02:57.7]} 4... cxd4 {[%clk 0:02:58.5]} 5. exd4 {[%clk 0:02:58.6]}
5... a6 {[%clk 0:02:58.9]} 6. Nf3 {[%clk 0:02:57.4]} 6... Nc6 {[%clk 0:02:59.3]}
7. Ne5 {[%clk 0:02:57.7]} 7... e6 {[%clk 0:02:57.8]} 8. Nxc6 {[%clk 0:02:56.4]}
8... bxc6 {[%clk 0:02:58]} 9. Na4 {[%clk 0:02:53.3]} 9... Bd6 {[%clk 0:02:55.1]}
10. Bxd6 {[%clk 0:02:51.9]} 10... Qxd6 {[%clk 0:02:55.1]} 11. Bd3 {[%clk
0:02:51.9]} 11... O-O {[%clk 0:02:52]} 12. O-O {[%clk 0:02:51.4]} 12... a5
{[%clk 0:02:46.6]} 13. Qe2 {[%clk 0:02:44]} 13... Re8 {[%clk 0:02:40.3]} 14. c3
{[%clk 0:02:39.5]} 14... e5 {[%clk 0:02:32.8]} 15. dxe5 {[%clk 0:02:37.7]} 15...
Rxe5 {[%clk 0:02:28.7]} 16. Qf3 {[%clk 0:02:35.9]} 16... Bg4 {[%clk 0:02:06.5]}
17. Qg3 {[%clk 0:02:33.8]} 17... Rae8 {[%clk 0:02:05.3]} 18. h3 {[%clk
0:02:29.7]} 18... Bh5 {[%clk 0:01:42.5]} 19. Rae1 {[%clk 0:02:27.9]} 19... Qe7
{[%clk 0:01:36.6]} 20. Rxe5 {[%clk 0:02:25]} 20... Qxe5 {[%clk 0:01:36.7]} 21.
Qxe5 {[%clk 0:02:24.5]} 21... Rxe5 {[%clk 0:01:36.8]} 22. Nc5 {[%clk 0:02:14.8]}
22... Bg6 {[%clk 0:01:30.6]} 23. Ba6 {[%clk 0:02:09.3]} 23... Ne4 {[%clk
0:00:53.9]} 24. Nxe4 {[%clk 0:01:59.7]} 24... Rxe4 {[%clk 0:00:50.2]} 25. f3
{[%clk 0:01:55.2]} 25... Re7 {[%clk 0:00:45.2]} 26. Kf2 {[%clk 0:01:53.6]} 26...
Kf8 {[%clk 0:00:44.7]} 27. Re1 {[%clk 0:01:44.8]} 27... Rxe1 {[%clk 0:00:43.7]}
28. Kxe1 {[%clk 0:01:45.7]} 28... Ke7 {[%clk 0:00:43.5]} 29. Kf2 {[%clk
0:01:40.6]} 29... c5 {[%clk 0:00:38.8]} 30. a3 {[%clk 0:01:39.5]} 30... Kd6
{[%clk 0:00:30.2]} 31. Ke3 {[%clk 0:01:39.3]} 31... f6 {[%clk 0:00:21.7]} 32. f4
{[%clk 0:01:37.3]} 32... Bf5 {[%clk 0:00:17.4]} 33. g4 {[%clk 0:01:32.7]} 33...
Bd7 {[%clk 0:00:16.2]} 34. g5 {[%clk 0:01:32]} 34... Bxh3 {[%clk 0:00:15.5]} 35.
Bd3 {[%clk 0:01:29.2]} 35... h6 {[%clk 0:00:14.7]} 36. gxh6 {[%clk 0:01:28.7]}
36... gxh6 {[%clk 0:00:14.9]} 37. Kf3 {[%clk 0:01:26.6]} 37... Be6 {[%clk
0:00:11.8]} 38. b4 {[%clk 0:01:26.1]} 38... cxb4 {[%clk 0:00:10.5]} 39. cxb4
{[%clk 0:01:25.4]} 39... axb4 {[%clk 0:00:10.5]} 40. axb4 {[%clk 0:01:26.3]}
40... Bd7 {[%clk 0:00:10.4]} 41. Be2 {[%clk 0:01:24.1]} 41... h5 {[%clk
0:00:10.2]} 42. Kg3 {[%clk 0:01:23]} 42... Be8 {[%clk 0:00:09.6]} 43. Kh4 {[%clk
0:01:23]} 43... d4 {[%clk 0:00:09.9]} 44. Bc4 {[%clk 0:01:19.7]} 44... Bg6
{[%clk 0:00:08.4]} 45. f5 {[%clk 0:01:06.5]} 45... Be8 {[%clk 0:00:06.7]} 46.
Kg3 {[%clk 0:01:04.6]} 46... Ke5 {[%clk 0:00:06.8]} 47. Bd3 {[%clk 0:01:04.3]}
47... Bd7 {[%clk 0:00:05.1]} 48. b5 {[%clk 0:01:02.9]} 48... Kd5 {[%clk
0:00:04.8]} 49. Kh4 {[%clk 0:01:03]} 49... Be8 {[%clk 0:00:04.1]} 50. Kg3 {[%clk
0:01:02.9]} 50... Kc5 {[%clk 0:00:04.3]} 51. Be2 {[%clk 0:01:02.6]} 51... Bxb5
{[%clk 0:00:03.3]} 52. Bxh5 {[%clk 0:01:02.5]} 52... Kd5 {[%clk 0:00:03.5]} 53.
Kf4 {[%clk 0:01:02.5]} 53... Kd6 {[%clk 0:00:03.5]} 54. Bf3 {[%clk 0:01:02.8]}
54... Bc6 {[%clk 0:00:03.7]} 55. Be2 {[%clk 0:01:02.6]} 55... Bd5 {[%clk
0:00:04.1]} 56. Bd3 {[%clk 0:01:02]} 56... Kc5 {[%clk 0:00:04.4]} 57. Bb1 {[%clk
0:00:59.8]} 57... Kb4 {[%clk 0:00:04.3]} 58. Kg3 {[%clk 0:00:55.7]} 58... Kc3
{[%clk 0:00:04.4]} 59. Kf2 {[%clk 0:00:56.3]} 59... Kd2 {[%clk 0:00:04.4]} 60.
Kf1 {[%clk 0:00:55]} 60... d3 {[%clk 0:00:04.6]} 61. Kf2 {[%clk 0:00:53.7]}
61... Be4 {[%clk 0:00:04.8]} 62. Kg3 {[%clk 0:00:52.8]} 62... Bxf5 {[%clk
0:00:05]} 63. Kf4 {[%clk 0:00:53.4]} 63... Be6 {[%clk 0:00:04.1]} 64. Ke4 {[%clk
0:00:53.6]} 64... Bc4 {[%clk 0:00:04]} 65. Kf5 {[%clk 0:00:52.1]} 65... Kc1
{[%clk 0:00:01.9]} 66. Bxd3 {[%clk 0:00:51.9]} 66... Bxd3+ {[%clk 0:00:02.8]}
67. Kxf6 {[%clk 0:00:52.5]} 1/2-1/2